[Event "Danish Skakligaen 2024-25"]
[Site "Denmark"]
[Date "2024.11.03"]
[Round "2.3"]
[White "Smith, Axel"]
[Black "Hansen, Sune Berg"]
[Result "1/2-1/2"]
[ECO "A20"]
[WhiteElo "2433"]
[BlackElo "2511"]
[Annotator "TA"]
[PlyCount "76"]
[EventDate "2024.11.02"]
[EventType "team-tourn"]
[EventCountry "DEN"]
[SourceTitle "playchess.com"]
[Source "ChessBase"]
[SourceQuality "1"]
[TimeControl "40/5400+30:1800+30"]

{[%evp 15,76,2,0,-36,-38,-20,-10,-14,-6,-13,-9,-18,-6,-8,18,9,10,0,42,50,58,0,0,0,11,27,33,30,26,27,38,0,21,0,27,0,0,0,4,0,0,0,0,0,0,0,0,0,0,-6,0,0,0,0,0,0,0,0,0,0,0,0,0]} 1. c4 {[%emt 0:00:15]} e5 {[%emt 0:00:39]} 2. e3 {[%emt 0:00:04]} d6 {[%emt 0:06:34]} 3. d4 {[%emt 0:00:41]} Nd7 {[%emt 0:00:39]} 4. Nc3 {[%emt 0:00:07]} g6 {[%emt 0:00:20]} 5. g3 {[%emt 0:10:53]} Bg7 {[%emt 0:04:40]} 6. Bg2 {[%emt 0:00:02]} Ngf6 {[%emt 0:01:18]} 7. Nf3 {[%emt 0:03:55]} O-O {[%emt 0:03:37]} 8. O-O {[%emt 0:00:02]} Re8 {[%emt 0:00:05]} 9. b4 {[%emt 0:10:39]} exd4 {[%emt 0:18:24]} 10. exd4 {[%emt 0:01:27]} Nb6 {[%emt 0:02:07]} 11. c5 {[%emt 0:17:45]} dxc5 {[%emt 0:04:47]} 12. bxc5 {[%emt 0:00:02]} Nbd5 {[%emt 0:00:53]} 13. Nxd5 {[%emt 0:00:03]} Nxd5 {[%emt 0:00:29]} 14. Qb3 {[%emt 0:01:17] Dodges Nc3} Be6 {[%emt 0:10:54][%cal Od5f4] [#] ...Nf4! would now be deadly.} 15. Qxb7 {[%emt 0:06:48]} Rb8 {[%emt 0:02:29]} 16. Qxa7 {[%emt 0:02:46]} Ra8 {[%emt 0:03:00]} 17. Qb7 {[%emt 0:00:06]} Rb8 {[%emt 0:01:26]} 18. Qa7 {[%emt 0:01:46]} (18. Qa6 $14) 18... Ra8 $11 {[%emt 0:01:01]} 19. Qb7 {[%emt 0:00:02]} Rb8 $1 {[%emt 0:00:20]} 20. Qa6 {[%emt 0:09:33]} Nb4 $1 {[%emt 0:04:18][%csl LRa6,LRd4]} 21. Qa4 {[%emt 0:01:08] Hoping for Rb1.} Bd7 $1 {[%emt 0:01:01]} 22. Qb3 {[%emt 0:09:17]} Be6 {[%emt 0:00:50]} 23. Qa4 {[%emt 0:00:02]} Bd7 $1 {[%emt 0:00:14]} 24. Qb3 {[%emt 0:07:32]} Be6 {[%emt 0:01:03]} 25. Qc3 {[%emt 0:07:13]} Nxa2 {[%emt 0:03:12] The position is equal.} 26. Qd2 {[%emt 0:00:16]} Nxc1 {[%emt 0:02:17]} 27. Raxc1 {[%emt 0:00:22]} Bd5 {[%emt 0:01:19]} 28. Rfd1 {[%emt 0:00:46]} Rb3 {[%emt 0:01:48]} 29. Rc3 {[%emt 0:02:29]} Rxc3 {[%emt 0:00:44]} 30. Qxc3 {[%emt 0:00:01]} Qa8 {[%emt 0:00:47]} 31. Ra1 {[%emt 0:06:24]} Qd8 {[%emt 0:02:24]} 32. Re1 {[%emt 0:01:42]} Rxe1+ {[%emt 0:01:25]} 33. Qxe1 {[%emt 0:00:01]} Bxf3 {[%emt 0:01:47]} 34. Bxf3 {[%emt 0:00:01]} Bxd4 {[%emt 0:00:12] KQB-KQB} 35. c6 {[%emt 0:00:33]} Qf6 {[%emt 0:00:46]} 36. Kg2 {[%emt 0:00:24]} h5 {[%emt 0:00:54]} 37. h4 {[%emt 0:00:30]} Kg7 {[%emt 0:00:26]} 38. Qd2 {[%emt 0:00:30]} Bb6 {Weighted Error Value: White=0.09 (flawless) /Black=0.03 (flawless) .  Mistake:       	White=1     	---        Inaccurate:     	White=1     	Black=2      OK:         	White=15    	Black=13     Best:        	---       	Black=1      Strong:       	---       	Black=4} 1/2-1/2

[Event "Danish Skakligaen 2024-25"]
[Site "Denmark"]
[Date "2024.11.03"]
[Round "2.3"]
[White "Sorensen, Jan"]
[Black "Haubro, Martin"]
[Result "0-1"]
[ECO "B53"]
[WhiteElo "2370"]
[BlackElo "2375"]
[Annotator "RC"]
[PlyCount "86"]
[EventDate "2024.11.02"]
[EventType "team-tourn"]
[EventCountry "DEN"]
[SourceTitle "playchess.com"]
[Source "ChessBase"]
[SourceQuality "1"]
[TimeControl "40/5400+30:1800+30"]

1. e4 {[%emt 0:00:02]} c5 {[%emt 0:00:05]} 2. Nf3 {[%emt 0:00:23]} d6 {[%emt 0:00:12]} 3. d4 {[%emt 0:00:47]} cxd4 {[%emt 0:00:05]} 4. Qxd4 {[%emt 0:00:07]} Nc6 {[%emt 0:01:10]} 5. Bb5 {[%emt 0:02:07]} Bd7 {[%emt 0:00:09]} 6. Qd3 {[%emt 0:00:47]} g6 {[%emt 0:02:06]} 7. O-O {[%emt 0:01:56]} Bg7 {[%emt 0:00:18]} 8. c4 {[%emt 0:00:26]} Nf6 {[%emt 0:02:38]} 9. Nc3 {[%emt 0:01:07]} O-O {[%emt 0:01:40]} 10. h3 {[%emt 0:01:45]} a6 {[%emt 0:13:48]} 11. Bxc6 {[%emt 0:01:31]} Bxc6 {[%emt 0:00:08]} 12. Nd4 {[%emt 0:11:21]} Qb6 {[%emt 0:08:25]} 13. Nc2 {[%emt 0:23:29]} Nd7 {[%emt 0:03:34]} 14. Rb1 {[%emt 0:05:46]} Nc5 {[%emt 0:07:26]} 15. Qe3 {[%emt 0:00:46]} Bxc3 {[%emt 0:00:18]} 16. Qxc3 {[%emt 0:00:08]} Nxe4 {[%emt 0:00:04]} 17. Qe1 {[%emt 0:01:15]} Qc5 {[%emt 0:02:25]} 18. b3 {[%emt 0:01:28]} b5 {[%emt 0:03:27]} 19. Be3 {[%emt 0:01:48]} Qh5 {[%emt 0:00:05]} 20. Nd4 {[%emt 0:06:39]} Bb7 {[%emt 0:00:44]} 21. f3 {[%emt 0:07:59]} Nc5 {[%emt 0:01:51]} 22. cxb5 {[%emt 0:02:48]} axb5 {[%emt 0:00:08]} 23. Qd2 {[%emt 0:00:45]} Qd5 {[%emt 0:12:38]} 24. Rfd1 {[%emt 0:02:10]} Ne6 {[%emt 0:05:14]} 25. Qe2 {[%emt 0:03:45]} Nxd4 {[%emt 0:03:04]} 26. Rxd4 {[%emt 0:02:19]} Qe5 {[%emt 0:00:42]} 27. Qd2 {[%emt 0:02:27]} Rfc8 {[%emt 0:00:42]} 28. Rh4 {[%emt 0:04:07]} Bxf3 {[%emt 0:09:41]} 29. Rf1 {[%emt 0:08:14]} Rxa2 {[%emt 0:00:18]} 30. Qxa2 {[%emt 0:00:18]} Qxe3+ {[%emt 0:00:03]} 31. Qf2 {[%emt 0:02:29]} Qxf2+ {[%emt 0:00:06]} 32. Rxf2 {[%emt 0:00:06]} Bd5 {[%emt 0:00:06]} 33. Rb4 {[%emt 0:00:21]} Rc5 {[%emt 0:00:07]} 34. Ra2 {[%emt 0:00:35]} f5 {[%emt 0:03:38]} 35. Kf2 {[%emt 0:01:36]} Kf7 {[%emt 0:01:55]} 36. g4 {[%emt 0:00:47]} Kf6 {[%emt 0:00:56]} 37. Re2 {[%emt 0:00:59]} Be4 {[%emt 0:00:51]} 38. gxf5 {[%emt 0:02:30]} gxf5 {[%emt 0:00:06]} 39. Rbxe4 {[%emt 0:00:23]} fxe4 {[%emt 0:00:07]} 40. Rxe4 {[%emt 0:00:02]} h5 {[%emt 0:02:07]} 41. Rb4 {[%emt 0:30:30]} e5 {[%emt 0:30:32]} 42. Ke3 {[%emt 0:01:46]} d5 {[%emt 0:00:12]} 43. Kd3 {[%emt 0:00:00]} d4 {[%emt 0:00:00]} 0-1

[Event "Danish Skakligaen 2024-25"]
[Site "Denmark"]
[Date "2024.11.03"]
[Round "2.3"]
[White "Hald Falkesgaard, Jeppe"]
[Black "Pajeken, Jakob Leon"]
[Result "0-1"]
[ECO "A20"]
[WhiteElo "2266"]
[BlackElo "2417"]
[Annotator "TA"]
[PlyCount "68"]
[EventDate "2024.11.02"]
[EventType "team-tourn"]
[EventCountry "DEN"]
[SourceTitle "playchess.com"]
[Source "ChessBase"]
[SourceQuality "1"]
[TimeControl "40/5400+30:1800+30"]

{[%evp 12,67,25,0,31,26,12,0,17,23,16,18,30,18,29,13,20,0,19,0,4,13,5,-13,0,0,0,0,0,0,0,0,0,0,0,-111,-86,-131,-92,-79,-66,-218,-238,-295,-312,-698,-681,-729,-716,-641,-587,-589,-581,-5620,-697,-29992,-29993,-29999]} 1. c4 {[%emt 0:00:06]} e5 {[%emt 0:00:11]} 2. g3 {[%emt 0:00:05]} Nf6 {[%emt 0:00:03]} 3. Bg2 {[%emt 0:00:07]} Bc5 {[%emt 0:00:20]} 4. Nc3 {[%emt 0:05:48]} O-O {[%emt 0:03:47]} 5. e3 {[%emt 0:07:59]} Nc6 {[%emt 0:00:18]} 6. Nge2 {[%emt 0:04:08]} d5 {[%emt 0:00:33]} 7. cxd5 {[%emt 0:13:55]} Nb4 {[%emt 0:00:11]} 8. d4 {[%emt 0:00:16]} exd4 {[%emt 0:00:11]} 9. exd4 {[%emt 0:00:11]} Be7 {[%emt 0:00:18][%cal Rb4d5] The position is equal.} 10. O-O {[%emt 0:02:10]} Nbxd5 {[%emt 0:01:24]} 11. Nf4 {[%emt 0:01:42]} Nxf4 {[%emt 0:01:11]} 12. Bxf4 {[%emt 0:00:07]} Bd6 {[%emt 0:00:52]} 13. Bxd6 {[%emt 0:06:07]} Qxd6 {[%emt 0:00:27]} 14. d5 {[%emt 0:06:38]} a6 {[%emt 0:03:12]} 15. Rc1 {[%emt 0:03:25]} Bf5 {[%emt 0:03:30]} 16. Qb3 {[%emt 0:06:24]} Rfe8 {[%emt 0:12:41]} 17. Rfe1 {[%emt 0:14:15]} b5 {[%emt 0:03:07][%cal Bb7b5,Bb5b4][%mdl 32]} 18. a4 {[%emt 0:05:40]} b4 {[%emt 0:16:40]} 19. Ne2 {[%emt 0:01:36]} Be4 {[%emt 0:02:12]} 20. Nf4 {[%emt 0:01:50]} Bxg2 {[%emt 0:01:13]} 21. Rxe8+ {[%emt 0:00:36]} Rxe8 {[%emt 0:00:29]} 22. Kxg2 {[%emt 0:01:35]} g5 {[%emt 0:02:32]} 23. Nh3 {[%emt 0:05:08]} ({Don't play} 23. Rc6 Qe5 24. Qe3 Qxe3 (24... gxf4 25. Qxe5 Rxe5 26. Rxf6 $11) (24... Qxb2 25. Nd3 $11) 25. fxe3 Kg7 $15) (23. Nd3 $1 $11 {remains equal.}) 23... h6 {[%emt 0:04:59] Black is more active.} (23... Qxd5+ 24. Qxd5 Nxd5 25. Nxg5 $11) (23... Re2 {seems wilder.} 24. Ng1 Rd2 25. Rd1 Rxd1 26. Qxd1 c5) 24. Rc6 {[%emt 0:02:20]} Qxd5+ {[%emt 0:02:41]} 25. Qxd5 {[%emt 0:00:05]} Nxd5 {[%emt 0:00:03]} 26. Rxa6 $2 $17 {[%emt 0:00:59][%mdl 4096] Endgame. [#] KRN-KRN. This move loses the game for White.} (26. Kf1 $15) 26... Re2 $1 $19 {[%emt 0:01:14]} 27. Ra5 {[%emt 0:01:32]} c6 {[%emt 0:00:34]} 28. Rc5 $2 {[%emt 0:02:00]} (28. b3) 28... Rxb2 {[%emt 0:04:27]} 29. Rxc6 {[%emt 0:00:07]} g4 {[%emt 0:00:39]} 30. Ng1 {[%emt 0:01:46]} Ne3+ {[%emt 0:00:20]} 31. Kh1 {[%emt 0:00:06]} Rxf2 {[%emt 0:00:04]} 32. Rxh6 {[%emt 0:02:38]} b3 {[%emt 0:00:20] [#] ( -> ...Nf1)} 33. h3 {[%emt 0:04:33]} Nf5 {[%emt 0:00:20][%csl LRg3,LRh6][%cal Rf5g3]} 34. hxg4 {[%emt 0:00:08]} Nxg3# {[%emt 0:00:05] Weighted Error Value: White=0.86/Black=0.07 (flawless) .  Mistake:       	White=3     	---        Inaccurate:     	White=3     	---        OK:         	White=8     	Black=11     Best:        	---       	Black=1      Strong:       	---       	Black=1} 0-1

[Event "Danish Skakligaen 2024-25"]
[Site "Denmark"]
[Date "2024.11.03"]
[Round "2.3"]
[White "Abildlund, Jens"]
[Black "Sylvan, Jacob"]
[Result "1/2-1/2"]
[ECO "A46"]
[WhiteElo "2181"]
[BlackElo "2329"]
[Annotator "RC"]
[PlyCount "41"]
[EventDate "2024.11.02"]
[EventType "team-tourn"]
[EventCountry "DEN"]
[SourceTitle "playchess.com"]
[Source "ChessBase"]
[SourceQuality "1"]
[TimeControl "40/5400+30:1800+30"]

1. d4 {[%emt 0:00:05]} Nf6 {[%emt 0:00:16]} 2. Nf3 {[%emt 0:00:07]} d5 {[%emt 0:00:12]} 3. c3 {[%emt 0:00:22]} g6 {[%emt 0:02:39]} 4. Bf4 {[%emt 0:02:55]} Bg7 {[%emt 0:02:19]} 5. Nbd2 {[%emt 0:00:47]} O-O {[%emt 0:00:46]} 6. e3 {[%emt 0:01:03]} b6 {[%emt 0:08:16]} 7. Be2 {[%emt 0:01:32]} c5 {[%emt 0:00:29]} 8. Ne5 {[%emt 0:00:39]} Bb7 {[%emt 0:00:46]} 9. O-O {[%emt 0:00:58]} Nc6 {[%emt 0:01:34]} 10. Ndf3 {[%emt 0:01:28]} Nh5 {[%emt 0:09:40]} 11. Nxc6 {[%emt 0:04:14]} Bxc6 {[%emt 0:00:36]} 12. Bg5 {[%emt 0:01:48]} f6 {[%emt 0:03:29]} 13. Bh4 {[%emt 0:00:15]} g5 {[%emt 0:06:10]} 14. Ne1 {[%emt 0:03:11]} gxh4 {[%emt 0:01:00]} 15. Bxh5 {[%emt 0:00:24]} e5 {[%emt 0:00:15]} 16. f4 {[%emt 0:09:06]} e4 {[%emt 0:03:58]} 17. g4 {[%emt 0:03:29]} hxg3 {[%emt 0:03:40]} 18. hxg3 {[%emt 0:00:29]} f5 {[%emt 0:00:35]} 19. Kf2 {[%emt 0:00:48]} cxd4 {[%emt 0:04:26]} 20. cxd4 {[%emt 0:04:52]} Be8 {[%emt 0:01:36]} 21. Rh1 {[%emt 0:04:16]} 1/2-1/2

[Event "Danish Skakligaen 2024-25"]
[Site "Denmark"]
[Date "2024.11.03"]
[Round "2.4"]
[White "Schandorff, Lars"]
[Black "Meskenas, Paulius"]
[Result "1-0"]
[ECO "D05"]
[WhiteElo "2471"]
[BlackElo "2264"]
[Annotator "TA"]
[PlyCount "51"]
[EventDate "2024.11.02"]
[EventType "team-tourn"]
[EventCountry "DEN"]
[SourceTitle "playchess.com"]
[Source "ChessBase"]
[SourceQuality "1"]
[TimeControl "40/5400+30:1800+30"]

{[%evp 9,51,14,18,13,18,16,26,22,18,-24,19,9,57,62,132,127,127,125,154,114,112,114,262,160,192,175,477,389,497,486,467,544,702,706,703,624,651,647,643,640,703,698,684,661]} 1. d4 {[%emt 0:00:08]} Nf6 {[%emt 0:00:05]} 2. Nf3 {[%emt 0:00:05]} d5 3. e3 {[%emt 0:00:20]} e6 {[%emt 0:04:02]} 4. Bd3 {[%emt 0:00:17]} Bd6 {[%emt 0:03:15]} 5. Nbd2 {[%emt 0:01:25]} c5 {[%emt 0:08:12]} 6. dxc5 {[%emt 0:02:27]} Bxc5 {[%emt 0:00:06]} 7. O-O {[%emt 0:00:12]} Nc6 {[%emt 0:01:44]} 8. a3 {[%emt 0:03:01] White has an edge.} a5 {[%emt 0:11:05]} 9. b3 {[%emt 0:02:06]} O-O {[%emt 0:03:41]} 10. Bb2 {[%emt 0:00:17]} Nd7 {[%emt 0:00:11]} (10... Qe7 $11) 11. c4 $14 {[%emt 0:05:44]} f5 {[%emt 0:15:22]} ({Better is} 11... b6 $14) 12. cxd5 $16 {[%emt 0:08:07]} exd5 {[%emt 0:00:34]} 13. Qc2 {[%emt 0:01:40]} g6 {[%emt 0:02:29]} 14. Rac1 {[%emt 0:14:41]} Be7 {[%emt 0:08:02]} 15. Bb5 {[%emt 0:08:15] White is more active.} Ndb8 {[%emt 0:02:00] This move loses the game for Black.} (15... Na7 $16) 16. Rfd1 {[%emt 0:01:31] And now Nb1 would win.} Qb6 {[%emt 0:01:28]} 17. Be2 $40 {[%emt 0:12:57][%cal Oe3e4][%mdl 128] Strongly threatening e4! White wants a kill.} Na6 $2 {[%emt 0:07:15] [#]} (17... Be6 {is tougher.} 18. h4 h6) 18. Nc4 $1 {[%emt 0:06:22][%mdl 512]} Qc5 {[%emt 0:04:44] [#]} (18... Qc7 19. Rxd5) 19. Rxd5 $3 {[%emt 0:02:02][%mdl 512] White is clearly winning.} Qxd5 {[%emt 0:00:15]} 20. Nb6 {[%emt 0:00:09][%csl LRa8,LRd5]} Qd8 {[%emt 0:06:03]} 21. Bc4+ {[%emt 0:00:38]} Rf7 {[%emt 0:00:05]} 22. Qc3 {[%emt 0:04:40]} Bf6 {[%emt 0:03:07]} 23. Qxf6 {[%emt 0:00:14]} Qxf6 {[%emt 0:00:06]} 24. Bxf6 {[%emt 0:00:04] This pair of bishops is nice.} Kf8 {[%emt 0:00:45] Black is weak on the dark squares} 25. Bxf7 {[%emt 0:00:42]} Kxf7 {[%emt 0:00:12]} 26. Be5 {[%emt 0:00:56] Weighted Error Value: White=0.25 (precise) /Black=0.56.  Mistake:       	---       	Black=4      Inaccurate:     	White=2     	Black=1      OK:         	White=6     	Black=2      Best:        	White=3     	Black=2} 1-0

[Event "Danish Skakligaen 2024-25"]
[Site "Denmark"]
[Date "2024.11.03"]
[Round "2.4"]
[White "Licznerski, Lukasz"]
[Black "Aabling-Thomsen, Jakob"]
[Result "1-0"]
[ECO "B38"]
[WhiteElo "2422"]
[BlackElo "2331"]
[Annotator "TA"]
[PlyCount "93"]
[EventDate "2024.11.02"]
[EventType "team-tourn"]
[EventCountry "DEN"]
[SourceTitle "playchess.com"]
[Source "ChessBase"]
[SourceQuality "1"]
[TimeControl "40/5400+30:1800+30"]

{[%evp 21,93,35,36,30,36,26,44,34,39,45,45,39,35,27,36,45,71,72,102,100,93,106,109,97,90,95,223,206,210,210,205,205,211,143,176,122,129,130,466,445,539,528,528,524,534,465,456,442,439,439,619,608,623,435,433,427,751,717,945,953,955,955,955,955,946,953,945,939,935,918,916,907,892,753]} 1. e4 {[%emt 0:00:04]} c5 {[%emt 0:00:23]} 2. Nf3 {[%emt 0:00:18]} g6 {[%emt 0:00:06]} 3. d4 {[%emt 0:02:20]} cxd4 {[%emt 0:00:06]} 4. Nxd4 {[%emt 0:00:03]} Nc6 {[%emt 0:00:39]} 5. c4 {[%emt 0:00:20]} Bg7 {[%emt 0:00:28]} 6. Be3 {[%emt 0:00:17]} Nf6 {[%emt 0:00:07]} 7. Nc3 {[%emt 0:00:03]} O-O {[%emt 0:03:31]} 8. Be2 {[%emt 0:00:34]} Nxd4 {[%emt 0:11:06]} 9. Bxd4 {[%emt 0:00:49]} d6 {[%emt 0:00:06]} 10. O-O {[%emt 0:00:51]} Bd7 {[%emt 0:01:34]} 11. h3 {[%emt 0:02:39]} Bc6 {[%emt 0:02:56]} 12. Qc2 {[%emt 0:00:02]} a5 {[%emt 0:00:20]} 13. Rad1 {[%emt 0:00:04]} Qc7 {[%emt 0:04:25]} 14. Rfe1 {[%emt 0:04:40] White is slightly better.} Nd7 {[%emt 0:00:46]} 15. Bxg7 {[%emt 0:03:37]} Kxg7 {[%emt 0:02:24]} 16. Bf1 {[%emt 0:00:26]} (16. Nd5 {is more complex.} Bxd5 17. exd5 Qc5 18. Qd2) 16... Kg8 {[%emt 0:00:51]} 17. Nd5 {[%emt 0:08:17]} Bxd5 {[%emt 0:00:11]} 18. exd5 {[%emt 0:00:03]} b5 {[%emt 0:04:54]} 19. Rxe7 {[%emt 0:08:34]} Rfe8 {[%emt 0:01:22]} 20. Qe4 {[%emt 0:25:46] White has more active pieces.} Rxe7 {[%emt 0:05:28]} 21. Qxe7 {[%emt 0:00:03] Strongly threatening c5.} bxc4 {[%emt 0:01:52]} 22. Rc1 {[%emt 0:00:57]} Ra7 {[%emt 0:04:25]} 23. Rxc4 {[%emt 0:02:05]} Qb8 {[%emt 0:07:01] [#] Black is weak on the light squares} (23... Nc5 $16 24. Qf6 Qe7) 24. Rc6 $1 $18 {[%emt 0:05:08]} Ne5 {[%emt 0:01:13] [#]} 25. Rc8+ $3 {[%emt 0:00:14][%mdl 512]} Qxc8 {[%emt 0:00:01]} 26. Qxa7 {[%emt 0:00:08][%mdl 4096] Endgame. KQB-KQN} Qd8 {[%emt 0:12:37]} 27. Qa6 {[%emt 0:01:55]} Qc7 {[%emt 0:06:37]} 28. a3 {[%emt 0:02:54]} (28. Qb5 $18) 28... Qc5 $16 {[%emt 0:09:51]} 29. Qb5 {[%emt 0:00:15]} Qd4 $2 {[%emt 0:07:19][%mdl 8192]} (29... Kg7 $16 30. Qxc5 dxc5) 30. Qxa5 $18 {[%emt 0:02:07] White is clearly winning.} Qxb2 {[%emt 0:01:40]} 31. Qd8+ {[%emt 0:00:45]} Kg7 {[%emt 0:00:03]} 32. Qxd6 {[%emt 0:00:07]} Qa1 {[%emt 0:00:12]} 33. Qb4 {[%emt 0:04:58]} Nd3 {[%emt 0:01:37]} 34. Qd2 {[%emt 0:01:27]} Nc5 {[%emt 0:01:59]} 35. d6 {[%emt 0:00:49]} Nd7 {[%emt 0:06:48]} (35... Qxa3 $142 36. Qd4+ Kg8) 36. Qb4 {[%emt 0:00:29] Threatens to win with a4.} Qe5 {[%emt 0:01:30]} 37. a4 {[%emt 0:06:37] a5 is the strong threat.} Nc5 {[%emt 0:00:40]} 38. Qd2 {[%emt 0:02:22]} Ne4 {[%emt 0:01:45]} (38... Nb3 $142 39. Qd1 (39. Qe3 Qxe3 40. fxe3 Kf8 $18) 39... Nd4) 39. Qe3 {[%emt 0:00:03] d7 would now be deadly.} Qd5 {[%emt 0:00:16] [#]} 40. d7 $1 {[%emt 0:00:25] White wants to mate with Qd3.} Nf6 {[%emt 0:00:04]} 41. Qd3 {[%emt 0:30:07]} Qxd7 {[%emt 0:03:44]} 42. Qxd7 {[%emt 0:00:00]} Nxd7 {[%emt 0:00:03] KB-KN} 43. a5 {[%emt 0:00:00][%cal Ba4a5,Ba5a6,Ba6a7][%mdl 32]} Kf6 {[%emt 0:01:45]} 44. a6 {[%emt 0:00:00]} Ke7 {[%emt 0:00:10]} 45. a7 {[%emt 0:00:00]} Nb6 {[%emt 0:00:04]} 46. Ba6 {[%emt 0:00:00]} Kd7 {[%emt 0:00:14]} 47. Bb7 {[%emt 0:00:00] Weighted Error Value: White=0.22 (precise) /Black=0.51.  Loses game:     	---       	Black=1      Mistake:       	White=1     	Black=3      Inaccurate:     	White=1     	Black=3      OK:         	White=11    	Black=11     Best:        	White=1     	Black=1      Strong:       	White=1     	---        Brilliant:      	White=1     	---} 1-0

[Event "Danish Skakligaen 2024-25"]
[Site "Denmark"]
[Date "2024.11.03"]
[Round "2.4"]
[White "Kristensen, Kaare Hove"]
[Black "Hoiberg, Nina"]
[Result "1-0"]
[ECO "D30"]
[WhiteElo "2307"]
[BlackElo "2091"]
[Annotator "RC"]
[PlyCount "95"]
[EventDate "2024.11.02"]
[EventType "team-tourn"]
[EventCountry "DEN"]
[SourceTitle "playchess.com"]
[Source "ChessBase"]
[SourceQuality "1"]
[TimeControl "40/5400+30:1800+30"]

1. d4 {[%emt 0:00:05]} d5 {[%emt 0:00:10]} 2. Nf3 {[%emt 0:00:24]} Nf6 {[%emt 0:00:14]} 3. c4 {[%emt 0:02:43]} e6 {[%emt 0:00:31]} 4. Bg5 {[%emt 0:01:36]} h6 {[%emt 0:01:56]} 5. Bxf6 {[%emt 0:00:28]} Qxf6 {[%emt 0:00:15]} 6. e3 {[%emt 0:07:18]} Bb4+ {[%emt 0:06:26]} 7. Nc3 {[%emt 0:01:52]} O-O {[%emt 0:01:08]} 8. Qb3 {[%emt 0:08:24]} Bxc3+ {[%emt 0:03:12]} 9. Qxc3 {[%emt 0:01:16]} c5 {[%emt 0:03:11]} 10. cxd5 {[%emt 0:04:06]} cxd4 {[%emt 0:00:08]} 11. Qxd4 {[%emt 0:02:32]} Qxd4 {[%emt 0:01:02]} 12. Nxd4 {[%emt 0:00:10]} exd5 {[%emt 0:00:08]} 13. Rc1 {[%emt 0:00:59]} Bd7 {[%emt 0:24:58]} 14. Rc7 {[%emt 0:03:28]} Bc6 {[%emt 0:02:06]} 15. b4 {[%emt 0:03:40]} a6 {[%emt 0:00:11]} 16. Kd2 {[%emt 0:02:37]} Re8 {[%emt 0:02:12]} 17. Be2 {[%emt 0:10:00]} Kf8 {[%emt 0:01:47]} 18. Rc1 {[%emt 0:16:28]} Re7 {[%emt 0:01:11]} 19. Rc8+ {[%emt 0:00:14]} Re8 {[%emt 0:00:08]} 20. Rc7 {[%emt 0:00:05]} Re7 {[%emt 0:00:26]} 21. Rc8+ {[%emt 0:01:17]} Re8 {[%emt 0:00:10]} 22. Rxe8+ {[%emt 0:02:15]} Kxe8 {[%emt 0:02:53]} 23. Bf3 {[%emt 0:03:15]} g6 {[%emt 0:01:14]} 24. a4 {[%emt 0:00:29]} Bxa4 {[%emt 0:02:11]} 25. Bxd5 {[%emt 0:06:35]} Nc6 {[%emt 0:07:09]} 26. Nxc6 {[%emt 0:01:16]} bxc6 {[%emt 0:00:10]} 27. Rxc6 {[%emt 0:02:53]} Rd8 {[%emt 0:16:17]} 28. Rc5 {[%emt 0:00:18]} Ke7 {[%emt 0:11:59]} 29. Kc3 {[%emt 0:02:26]} f6 {[%emt 0:01:03]} 30. Bc4 {[%emt 0:03:04]} Rd6 {[%emt 0:02:27]} 31. Ra5 {[%emt 0:05:39]} Bb5 {[%emt 0:05:21]} 32. Bxb5 {[%emt 0:01:07]} axb5 {[%emt 0:00:04]} 33. Rxb5 {[%emt 0:00:11]} Rd1 {[%emt 0:00:03]} 34. Rc5 {[%emt 0:01:15]} Kd6 {[%emt 0:02:34]} 35. Rc4 {[%emt 0:01:06]} Rc1+ {[%emt 0:00:46]} 36. Kb3 {[%emt 0:00:34]} Rb1+ {[%emt 0:00:17]} 37. Ka2 {[%emt 0:03:08]} Rg1 {[%emt 0:01:30]} 38. g3 {[%emt 0:01:20]} Rg2 {[%emt 0:00:41]} 39. Rf4 {[%emt 0:00:45]} f5 {[%emt 0:00:21]} 40. Ka3 {[%emt 0:02:00]} Kc6 {[%emt 0:00:44]} 41. h4 {[%emt 0:30:44]} h5 {[%emt 0:03:02]} 42. Kb3 {[%emt 0:00:00]} Kb5 {[%emt 0:00:42]} 43. Kc3 {[%emt 0:00:00]} Rg1 {[%emt 0:00:10]} 44. Kd4 {[%emt 0:00:00]} Rc1 {[%emt 0:03:18]} 45. Ke5 {[%emt 0:00:00]} Rc8 {[%emt 0:04:38]} 46. Kf6 {[%emt 0:00:00]} Rc6+ {[%emt 0:00:27]} 47. Kf7 {[%emt 0:00:00]} Ka4 {[%emt 0:04:14]} 48. e4 1-0